Cogmind - Beta 9.6 @@@ ROGUE MODE // 2020.07.25 @ 03:09:22 Player: Phillammon Result: Destroyed by S-10 Pest with Light Assault Rifle Performance ------------- Evolutions (1) 500 Regions Visited (3) 600 Robots Destroyed (7) 35 Value Destroyed (233) 233 Prototype IDs (0) 0 Alien Tech Used (0) 0 Bonus (0) 0 TOTAL SCORE: 1368 Bonus ------- None Cogmind --------- Core Integrity 0/400 Matter 295/300 Energy 100/100 System Corruption 0% Temperature Cool (0) Movement Walking (120) Location -9/Storage Parts ------- > --- POWER (1) -------- (None) > --- PROPULSION (2) --- Carbon-fiber Leg > --- UTILITY (4) ------ Small Storage Unit Medium Storage Unit Advanced Visual Processing Unit Signal Interpreter > --- WEAPON (2) ------- Hammer > --- INVENTORY (10) --- Carbon-fiber Leg Carbon-fiber Leg Carbon-fiber Leg Carbon-fiber Leg Carbon-fiber Leg Carbon-fiber Leg Peak State ------------ > --- POWER ------------ Reinforced Ion Engine > --- PROPULSION ------- Carbon-fiber Leg Carbon-fiber Leg > --- UTILITY ---------- Small Storage Unit Medium Storage Unit Advanced Visual Processing Unit Signal Interpreter > --- WEAPON ----------- Light Assault Rifle > --- INVENTORY -------- Carbon-fiber Leg Carbon-fiber Leg Carbon-fiber Leg Hammer [Rating: 16] Favorites ----------- Power Reinforced Ion Engine Engine Reinforced Ion Engine Propulsion Light Treads Treads Light Treads Leg Carbon-fiber Leg Utility Small Storage Unit Storage Small Storage Unit Processor Signal Interpreter Weapon Light Assault Rifle Energy Gun Small Laser Ballistic Gun Light Assault Rifle Impact Weapon Hammer Build | -11 -10 -9 -9 ------- Run | Scr Mat Mat Sto Slots Evolved 2 | . . 2 . Power . | . . . . Propulsion . | . . . . Utility 2 | . . 2 . Weapon . | . . . . Parts Attached 12 | 2 . 9 1 Power 1 | . . 1 . Engine 1 | . . 1 . Core . | . . . . Reactor . | . . . . Propulsion 4 | 2 . 2 . Treads 2 | 2 . . . Leg 2 | . . 2 . Wheel . | . . . . Hover . | . . . . Flight . | . . . . Utility 4 | . . 4 . Device . | . . . . Storage 1 | . . 1 . Processor 3 | . . 3 . Hackware . | . . . . Protection . | . . . . Artifact . | . . . . Weapon 3 | . . 2 1 Energy Gun . | . . . . Energy Cannon . | . . . . Ballistic Gun 2 | . . 2 . Ballistic Cannon . | . . . . Launcher . | . . . . Special Weapon . | . . . . Impact Weapon 1 | . . . 1 Slashing Weapon . | . . . . Piercing Weapon . | . . . . Special Melee Weapon . | . . . . Unidentified Prototypes . | . . . . Parts Lost 8 | . 1 6 1 Power 1 | . . 1 . Propulsion 3 | . . 2 1 Utility . | . . . . Weapon 4 | . 1 3 . Highest Loss Streak 4 | . 1 4 1 Average Slot Usage (%) 82 | . 84 83 70 Engine 10 | . 14 10 . Treads 14 | . 28 11 . Leg 5 | . . 6 19 Storage 17 | . 14 18 22 Processor 16 | . . 22 22 Energy Gun 3 | . 13 . . Ballistic Gun 13 | . 14 14 . Naked Turns . | . . . . Heaviest Build 25 | 11 11 25 14 Greatest Support 40 | 40 40 40 30 Greatest Overweight (x) 7 | . . 7 . Average Overweight (x) . | . . . . Largest Inventory Capacity 10 | 6 6 10 10 Average Capacity 8 | 6 6 8 10 Most Carried 7 | 6 3 7 7 Average Carried 2 | 4 2 2 6 Final Capacity 10 | 6 6 10 10 Final Carried 7 | 1 3 7 6 Class Distribution -------------------- 100% | Mutant Dominant Class ---------------- Mutant | -10/Materials Mutant | -9/Materials Mutant | -9/Storage Resources | -11 -10 -9 -9 ----------- Run | Scr Mat Mat Sto Matter Collected 359 | 200 21 138 . Remotely . | . . . . Salvage Created 307 | . 21 286 . Parts 16 | . 2 14 . Haulers Intercepted . | . . . . Recyclers Shooed . | . . . . Parts Field Recycled . | . . . . Retrieved Matter . | . . . . Parts Self-Destructed . | . . . . Prevented . | . . . . Kills | -11 -10 -9 -9 ------- Run | Scr Mat Mat Sto Combat Hostiles Destroyed 6 | . . 6 . Guns 6 | . . 6 . Classes Destroyed 4 | . 1 3 . Watcher 1 | . 1 . . Grunt 4 | . . 4 . Brawler 1 | . . 1 . Sentry 1 | . . 1 . Best Kill Streak 3 | . 1 3 . Combat Bots Only 3 | . . 3 . Max Kills in Single Turn 1 | . 1 1 . Gunslinging . | . . . . Exploded . | . . . . Melee . | . . . . Uniques/NPCs Destroyed . | . . . . Combat | -11 -10 -9 -9 -------- Run | Scr Mat Mat Sto Damage Taken 1498 | . 119 1242 137 Core 431 | . 27 326 78 Absorbed by Shields . | . . . . Core Remaining (%) 94 | 100 89 . . Volleys Fired 35 | . 2 33 . Largest 2 | . 2 2 . Hottest 60 | . 60 40 . Shots Fired 49 | . 4 45 . Gun 49 | . 4 45 . Cannon . | . . . . Launcher . | . . . . Special . | . . . . Kinetic 47 | . 2 45 . Thermal 2 | . 2 . . Explosive . | . . . . Electromagnetic . | . . . . Robot Hit Streak 13 | . 3 13 . Robot Miss Streak 2 | . . 2 . Penetration Max . | . . . . Secondary Targets . | . . . . Shots Hit Robots 43 | . 3 36 4 Core Hits 19 | . 2 16 1 Critical Hits . | . . . . Critical Kills . | . . . . Critical Parts Destroyed . | . . . . Melee Attacks 4 | . . . 4 Impact 4 | . . . 4 Slashing . | . . . . Piercing . | . . . . Sneak Attacks 1 | . . . 1 Combat Hostiles . | . . . . Follow-up Attacks . | . . . . Damage Inflicted 442 | . 31 320 91 Guns 351 | . 31 320 . Cannons . | . . . . Explosions . | . . . . Melee 91 | . . . 91 Ramming . | . . . . Kinetic 327 | . 7 320 . Thermal 24 | . 24 . . Explosive . | . . . . Electromagnetic . | . . . . Impact 91 | . . . 91 Slashing . | . . . . Piercing . | . . . . Highest Corruption . | . . . . Average Corruption . | . . . . Corruption Purged . | . . . . Overload Shots . | . . . . Overflow Damage 2 | . . . 2 Projectiles . | . . . . Explosions . | . . . . Melee 2 | . . . 2 Knockbacks . | . . . . Impact . | . . . . Kinetic . | . . . . Secondary . | . . . . Self-Inflicted Damage . | . . . . Shots . | . . . . Rammed . | . . . . Targets Rammed . | . . . . Kicked . | . . . . Crushed . | . . . . Highest Temperature 65 | . 20 65 . Average Temperature 17 | . 15 17 . Received Heat Transfer 543 | . 66 477 . Siege Activations . | . . . . Robots Corrupted . | . . . . Combat Hostiles . | . . . . Parts Fried . | . . . . Impact Corruptions 2 | . . . 2 Robots Melted . | . . . . Combat Hostiles . | . . . . Parts Melted . | . . . . Heat Transferred 50 | . 50 . . Parts Sabotaged . | . . . . Parts Stolen . | . . . . Parts Stripped . | . . . . Power Chain Reactions . | . . . . Missiles Intercepted . | . . . . Alert | -11 -10 -9 -9 ------- Run | Scr Mat Mat Sto Peak Influence 170 | . 22 170 . Average Influence 75 | . 17 107 . Maximum Alert Level . | . . . . Low Security (%) 100 | 100 100 100 100 Level 1 . | . . . . Level 2 . | . . . . Level 3 . | . . . . Level 4 . | . . . . Level 5 . | . . . . High Security . | . . . . Max Security . | . . . . Squads Dispatched 1 | . . 1 . Investigation 1 | . . 1 . Extermination . | . . . . Reinforcement . | . . . . Assault . | . . . . Garrison . | . . . . Intercept . | . . . . Construction Impeded . | . . . . Haulers Reinforced . | . . . . Stealth | -11 -10 -9 -9 --------- Run | Scr Mat Mat Sto Distress Signals . | . . . . Communications Jammed . | . . . . Distress Signals . | . . . . Times Spotted 16 | . 4 9 3 Peak Tracking Total 4 | . 2 4 3 Tactical Retreats . | . . . . Traps | -11 -10 -9 -9 ------- Run | Scr Mat Mat Sto Traps Triggered . | . . . . Indirectly . | . . . . Trap Hack Attempts . | . . . . Triggered . | . . . . Disarmed . | . . . . Reprogrammed . | . . . . Reused . | . . . . Traps Extracted . | . . . . Installed . | . . . . Triggered . | . . . . Machines | -11 -10 -9 -9 ---------- Run | Scr Mat Mat Sto Machines Disabled . | . . . . Max in Single Turn . | . . . . Machines Sabotaged . | . . . . Garrisons Compromised . | . . . . Overloaded Fab Kills . | . . . . Fab Network Shutdowns . | . . . . Hacking | -11 -10 -9 -9 --------- Run | Scr Mat Mat Sto Machines Accessed 2 | . . 2 . Terminals 1 | . . 1 . Fabricators . | . . . . Repair Stations . | . . . . Recycling Units 1 | . . 1 . Scanalyzers . | . . . . Garrison Access . | . . . . Total Hacks 6 | . . 6 . Successful 3 | . . 3 . Failed 3 | . . 3 . Catastrophic . | . . . . Database Lockouts . | . . . . Manual 6 | . . 6 . Terminals 5 | . . 5 . Fabricators . | . . . . Repair Stations . | . . . . Recycling Units 1 | . . 1 . Scanalyzers . | . . . . Garrison Access . | . . . . Terminal Hacks . | . . . . Fabricator Hacks . | . . . . Repair Station Hacks . | . . . . Recycling Unit Hacks . | . . . . Scanalyzer . | . . . . Garrison Access Hacks . | . . . . Unauthorized Hacks 3 | . . 3 . Terminals 2 | . . 2 . Botnet 1 | . . 1 . Operators 1 | . . 1 . Fabricators . | . . . . Repair Stations . | . . . . Recycling Units 1 | . . 1 . Tunnel 1 | . . 1 . Scanalyzers . | . . . . Garrison Access . | . . . . Data Cores Recovered . | . . . . Used . | . . . . Hacking Detections 1 | . . 1 . Full Trace Events 1 | . . 1 . Feedback Events . | . . . . Feedback Blocked . | . . . . Robot Schematics Acquired . | . . . . Robots Built . | . . . . Matter . | . . . . Time . | . . . . Total Robot Build Rating . | . . . . Part Schematics Acquired . | . . . . Parts Built . | . . . . Matter . | . . . . Time . | . . . . Total Part Build Rating . | . . . . Parts Repaired . | . . . . Time . | . . . . Parts Recycled . | . . . . Recycled Matter . | . . . . Retrieved Matter . | . . . . Retrieved Components . | . . . . Parts Scanalyzed . | . . . . Part Schematics Acquired . | . . . . Parts Damaged . | . . . . Bothacking | -11 -10 -9 -9 ------------ Run | Scr Mat Mat Sto Used RIF Installer . | . . . . Robots Hacked . | . . . . Non-combat . | . . . . Combat . | . . . . Robot Hacks Applied . | . . . . Relay Couplers Released . | . . . . Robots Rewired . | . . . . Allies Hacked . | . . . . Hacks Repelled . | . . . . Allies | -11 -10 -9 -9 -------- Run | Scr Mat Mat Sto Total Allies . | . . . . Largest Group . | . . . . Highest-Rated Group . | . . . . Highest-Rated Ally . | . . . . Total Orders . | . . . . Ally Attacks . | . . . . Total Damage . | . . . . Kills . | . . . . Allies Corrupted . | . . . . Allies Melted . | . . . . Intel | -11 -10 -9 -9 ------- Run | Scr Mat Mat Sto Robot Analysis Total . | . . . . Derelict Logs Recovered . | . . . . Drone Launches . | . . . . Drone Recoveries . | . . . . Exploration | -11 -10 -9 -9 ------------- Run | Scr Mat Mat Sto Turns Passed 629 | 6 163 412 48 Spaces Moved 315 | 1 91 193 30 Core 14 | . . 14 . Treads 188 | 1 91 96 . Legs 113 | . . 83 30 Wheels . | . . . . Hover . | . . . . Flight . | . . . . Fastest Speed 120 | 160 160 120 120 Average Speed 156 | 160 160 160 120 Slowest Speed 400 | 160 160 400 120 Overloaded Moves . | . . . . Propulsion Burnouts . | . . . . Robots Hopped . | . . . . Cave-ins Triggered . | . . . . Exploration Rate (%) 10 | 2 13 17 9 Regions Visited 3 Branch Regions 1 Pre-discovered Areas 1 | . . 1 . Known Exits Taken 1 | . . 1 . Unknown Exits Taken 2 | 1 1 . . Scrap Searched . | . . . . Spaces Dug . | . . . . Terrain Destroyed . | . . . . Melee . | . . . . Projectile . | . . . . AOE . | . . . . Actions | -11 -10 -9 -9 --------- Run | Scr Mat Mat Sto Total 405 | 7 105 257 36 Wait 20 | . 11 8 1 Move 312 | . 90 192 30 Hop . | . . . . Pick Up 15 | . 2 13 . Fast Attach . | . . . . Attach 9 | . . 8 1 Detach . | . . . . Swap 3 | 2 . 1 . Drop 7 | 5 . 2 . Fire 35 | . 2 33 . Melee 4 | . . . 4 Ram . | . . . . Kick . | . . . . Crush . | . . . . Escape Stasis . | . . . . Rewire . | . . . . Trap . | . . . . Miscellaneous . | . . . . Route ------- -11/Scrapyard -10/Materials -9/Materials -9/Storage History --------- Turn | Location | Event 7 | -11/Scrapyard | Discovered new exit (range 0) 7 | -11/Scrapyard | Entered Materials 162 | -10/Materials | Discovered new exit (range 7) 170 | -10/Materials | Entered another Materials area 170 | -9/Materials | Evolved 2 slots: Utility x2 319 | -9/Materials | Build established: Mutant 328 | -9/Materials | Discovered new exit (range 18) 399 | -9/Materials | Core integrity fell below 50% 426 | -9/Materials | Lost 4 parts (2n2w) 568 | -9/Materials | Core integrity fell below 20% 581 | -9/Materials | Identified exit to Storage 582 | -9/Materials | Entered Storage 630 | -9/Storage | Destroyed by S-10 Pest with Light Assault Rifle Last Messages --------------- 00534_ R-06 Scavenger collects Heat Sink. 00537_ R-06 Scavenger collects Aluminum Leg. 00541_ K-01 Serf collects debris. 00553_ K-01 Serf destroyed. 00556_ Acquired 31 matter. 00562_ Rnf. Ion Engine destroyed. 00581_ EXIT=IDENTIFIED: STORAGE LOCATION=STORAGE GOAL=ESCAPE 00604_ K-01 Serf collects debris. 00608_ Sneak attack on A-02 Transporter. 00611_ Destroyed Transport Network Coupler. 00611_ A-02 Transporter system corrupted by crushing effect. 00616_ K-01 Serf collects debris. 00618_ C-30 ARC bursts open, deploying its payload. 00618_ S-10 Pest unfolds itself. 00620_ K-01 Serf collects debris. 00625_ Carbon-fiber Leg destroyed. 00628_ Destroyed Flight Unit. 00628_ S-10 Pest system corrupted by crushing effect. Map ----- +----------------------------------------------------+ | | | | | | | | | | | | | | | | | ??????????????????????????????????? | | ??????????????????????????????????? | | ??????????????????????????????????? | | ??????????????????????????????????? | | ??????????????????????????????????? | | ??????????????????????????????????? | | ???????????##???# ????????????????? | | ?????????# ??? #??????????????? | | ??#####??# ? #??????????????? | | ??# #??# ? #??????????????? | | ??# #?## """?""" #??????????????? | | ??# #?#T """?""" #??????????????? | | ??# #??# """ """ #??????????????? | | ??# #??? ???????????????? | | ??# #????? ?????????????????? | | ??# ########/#########+######+#+# | | ??# r | | ??# as @ k | | ??# ss | | ??# ###############+#########+### | | ??# #???????????????????????????? | | ??# #???????????????????????????? | | ??# #???????????????????????????? | | ??# #???????????????????????????? | | ??# +???????????????????????????? | | ??# #???????????????????????????? | | ??# #???????????????????????????? | | ??# #???????????????????????????? | | ??# ????????????????????????????? | | ??# ????????????????????????????? | | ??# ????????????????????????????? | | ??# ????????????????????????????? | | ??# ????????????????????????????? | | ??# ????????????????????????????? | | ??# ????????????????????????????? | | ??????????????????????????????????? | | ??????????????????????????????????? | | ??????????????????????????????????? | | ??????????????????????????????????? | | ??????????????????????????????????? | | ??????????????????????????????????? | | ??????????????????????????????????? | +----------------------------------------------------+ Best States ------------- Heat Dissipation 28 Energy Generation 12 Energy Capacity 265 Matter Stores 300 Matter Capacity 300 Sight Range 20 Terrain Scan Density 10 Evasion (%) 40 Recoil Reduction 2 Item Schematics ----------------- None Robot Schematics ------------------ None Fabricated ------------ Nothing Alien Tech Used ----------------- None Achievements -------------- None Challenges ------------ None Game ------ Seed ModifiedHoverRailgun Manual? 0 Play Time 00:05:57 Cumulative 11.7 hours Start 2020.07.25 @ 03:03:55 End 2020.07.25 @ 03:09:22 Sessions 1 Manual Loads 0 Difficulty Rogue Special Mode None Game No. 34 Rogue 34 Adventurer 0 Explorer 0 Win Type - Total 0 Types 0/0/0/0/0/0/0 Lore% 15 Gallery% 21 Achievement% 18 Wizard Run 0 Options --------- ASCII 0 Keyboard 0 Movement Mouse Keybinds 0 Fullscreen 1 Font 18/SmallcapsGlow Map View 76x50 Tactical HUD 1 Map Filters NONE Filters NONE Steam 0 RUN: 7f86b8fe-76b4-4de0-a121-388b40469238